fUST/lending_fUST_20250519
["ID","MTS","AMOUNT","RATE_DAILY","PERIOD"]
[361640299,1747657841450,-430.0,0.00023835,4]
[361640300,1747657841462,-430.0,0.00023835,4]
[361640301,1747657841473,-2199.85,0.00023835,4]
[361640302,1747657841482,-430.0,0.00023835,4]
[361640303,1747657841492,-822.57,0.00023835,4]
[361640304,1747657841501,-3954.19,0.00023835,4]
[361640305,1747657841511,-500.0,0.00023835,4]
[361640306,1747657841522,-500.54626367,0.00023835,4]
[361640307,1747657841533,-430.0,0.00023835,4]
[361640308,1747657841543,-430.0,0.00023835,4]
[361640309,1747657841552,-430.0,0.00023835,4]
[361640310,1747657841562,-570.49,0.00023835,4]
[361640311,1747657841572,-430.0,0.00023835,4]
[361640312,1747657841581,-430.0,0.00023835,4]
[361640313,1747657841591,-1161.2,0.00023835,4]
[361640315,1747657841600,-430.0,0.00023835,4]
[361640316,1747657841609,-500.0,0.00023835,4]
[361640317,1747657841619,-563.24,0.00023835,4]
[361640318,1747657841628,-430.0,0.00023835,4]
[361640319,1747657841637,-5000.0,0.00023835,4]
[361640320,1747657841647,-430.0,0.00023835,4]
[361640321,1747657841656,-430.0,0.00023835,4]
[361640322,1747657841666,-3293.69,0.00023835,4]
[361640323,1747657841675,-430.0,0.00023835,4]
[361640324,1747657841684,-430.0,0.00023835,4]
[361640325,1747657841694,-430.0,0.00023835,4]
[361640326,1747657841703,-693.59,0.00023835,4]
[361640327,1747657841712,-430.0,0.00023835,4]
[361640328,1747657841720,-430.0,0.00023835,4]
[361640329,1747657841730,-430.0,0.00023835,4]
[361640330,1747657841739,-430.0,0.00023835,4]
[361640331,1747657841748,-430.0,0.00023835,4]
[361640332,1747657841758,-430.0,0.00023835,4]
[361640333,1747657841767,-430.0,0.00023835,4]
[361640334,1747657841776,-400.0,0.00023835,4]
[361640335,1747657841785,-430.0,0.00023835,4]
[361640336,1747657841794,-430.0,0.00023835,4]
[361640337,1747657841803,-430.0,0.00023835,4]
[361640338,1747657841812,-430.0,0.00023835,4]
[361640339,1747657841822,-430.0,0.00023835,4]
[361640340,1747657841831,-430.0,0.00023835,4]
[361640341,1747657841840,-430.0,0.00023835,4]
[361640342,1747657841850,-430.0,0.00023835,4]
[361640343,1747657841859,-430.0,0.00023835,4]
[361640344,1747657841868,-430.0,0.00023835,4]
[361640345,1747657841878,-350.0,0.00023835,4]
[361640346,1747657841887,-430.0,0.00023835,4]
[361640347,1747657841896,-430.0,0.00023835,4]
[361640348,1747657841906,-430.0,0.00023835,4]
[361640349,1747657841917,-400.0,0.00023835,4]
[361640350,1747657841927,-441.58,0.00023835,4]
[361640351,1747657841936,-430.0,0.00023835,4]
[361640352,1747657841945,-1073.01,0.00023835,4]
[361640353,1747657841954,-430.0,0.00023835,4]
[361640354,1747657841963,-342.15103376,0.00023835,4]
[361640355,1747657841972,-692.46,0.00023835,4]
[361640356,1747657841982,-430.0,0.00023835,4]
[361640357,1747657841991,-200.0,0.00023835,4]
[361640358,1747657842000,-430.0,0.00023835,4]
[361640359,1747657842010,-1021.37,0.00023835,4]
[361640360,1747657842019,-779.47,0.00023835,4]
[361640361,1747657842029,-430.0,0.00023835,4]
[361640362,1747657842040,-430.0,0.00023835,4]
[361640363,1747657842049,-430.0,0.00023835,4]
[361640364,1747657842059,-430.0,0.00023835,4]
[361640365,1747657842068,-2024.61,0.00023835,4]
[361640366,1747657842077,-430.0,0.00023835,4]
[361640367,1747657842086,-430.0,0.00023835,4]
[361640368,1747657842096,-430.0,0.00023835,4]
[361640369,1747657842106,-648.43,0.00023835,4]
[361640370,1747657842115,-400.0,0.00023835,4]
[361640371,1747657842124,-509.09,0.00023835,4]
[361640372,1747657842133,-814.03,0.00023835,4]
[361640373,1747657842143,-1561.33,0.00023835,4]
[361640374,1747657842153,-758.91,0.00023835,4]
[361640375,1747657842163,-430.0,0.00023835,4]
[361640376,1747657842172,-430.0,0.00023835,4]
[361640377,1747657842182,-430.0,0.00023835,4]
[361640378,1747657842192,-893.03,0.00023835,4]
[361640379,1747657842202,-500.0,0.00023835,4]
[361640380,1747657842211,-574.1,0.00023835,4]
[361640381,1747657842220,-430.0,0.00023835,4]
[361640382,1747657842229,-430.0,0.00023835,4]
[361640383,1747657842239,-430.0,0.00023835,4]
[361640384,1747657842248,-430.0,0.00023835,4]
[361640385,1747657842257,-430.0,0.00023835,4]
[361640386,1747657842267,-585.13,0.00023835,4]
[361640387,1747657842276,-1478.85,0.00023835,4]
[361640388,1747657842285,-418.31453337,0.00023835,4]
[361640389,1747657842295,-430.0,0.00023835,4]
[361640390,1747657842304,-430.0,0.00023835,4]
[361640391,1747657842314,-430.0,0.00023835,4]
[361640392,1747657842323,-430.0,0.00023835,4]
[361640393,1747657842332,-525.82,0.00023835,4]
[361640394,1747657842342,-669.24,0.00023835,4]
[361640395,1747657842351,-430.0,0.00023835,4]
[361640396,1747657842362,-941.78,0.00023835,4]
[361640397,1747657842371,-430.0,0.00023835,4]
[361640398,1747657842381,-318.75,0.00023835,4]
[361640399,1747657842390,-430.0,0.00023835,4]
[361640400,1747657842399,-430.0,0.00023835,4]
[361640401,1747657842408,-1208.26,0.00023835,4]
[361640402,1747657842418,-430.0,0.00023835,4]
[361640403,1747657842427,-430.0,0.00023835,4]
[361640404,1747657842436,-430.0,0.00023835,4]
[361640405,1747657842445,-430.0,0.00023835,4]
[361640406,1747657842455,-439.17,0.00023835,4]
[361640407,1747657842467,-430.0,0.00023835,4]
[361640408,1747657842476,-267.77149856,0.00023835,4]
[361640409,1747657842486,-430.0,0.00023835,4]
[361640410,1747657842495,-430.0,0.00023835,4]
[361640411,1747657842506,-500.0,0.00023849,2]
[361640412,1747657842515,-1082.41843096,0.00023866,10]
[361640413,1747657842525,-500.0,0.00023873,2]
[361640414,1747657842535,-201.17402631,0.0002389,2]
[361640415,1747657842544,-689.5233423,0.00023895,2]
[361640416,1747657842554,-791.61,0.0002397,4]
[361640417,1747657842563,-500.0,0.00023971,2]
[361640418,1747657842573,-500.0,0.00023971,2]
[361640419,1747657842582,-500.0,0.00023971,2]
[361640420,1747657842591,-500.0,0.00023971,2]
[361640421,1747657842601,-500.0,0.00023971,2]
[361640422,1747657842610,-154.18505637,0.00023971,2]
[361640423,1747657842620,-424.93460808,0.00023971,2]
[361640424,1747657842629,-500.0,0.00023971,2]
[361640425,1747657842638,-500.0,0.00023971,2]
[361640426,1747657842648,-500.0,0.00023971,2]
[361640427,1747657842657,-500.0,0.00023971,2]
[361640428,1747657842667,-500.0,0.00023971,2]
[361640430,1747657842677,-500.0,0.00023971,2]
[361640431,1747657842686,-500.0,0.00023971,2]
[361640432,1747657842696,-500.0,0.00023971,2]
[361640433,1747657842705,-500.0,0.00023971,2]
[361640434,1747657842714,-415.45193377,0.00023971,2]
[361640440,1747657842724,-500.0,0.00023971,2]
[361640441,1747657842838,-500.0,0.00023971,2]
[361640443,1747657842847,-450.0,0.00023971,2]
[361640444,1747657842857,-493.09846487,0.00023971,2]
[361640445,1747657842866,-791.61,0.00023971,4]
[361640446,1747657842876,-791.61,0.00023971,4]
[361640447,1747657842886,-791.61,0.00023971,4]
[361640448,1747657842895,-791.61,0.00023971,4]
[361640449,1747657842905,-791.61,0.00023971,4]
[361640450,1747657842914,-430.0,0.00023972,4]
[361640451,1747657842924,-430.0,0.00023972,4]
[361640452,1747657842933,-350.6,0.00023972,4]
[361640453,1747657842943,-430.0,0.00023972,4]
[361640454,1747657842953,-430.0,0.00023972,4]
[361640455,1747657842962,-430.0,0.00023972,4]
[361640456,1747657842972,-430.0,0.00023972,4]
[361640457,1747657842981,-430.0,0.00023972,4]
[361640458,1747657842991,-430.0,0.00023972,4]
[361640459,1747657843000,-430.0,0.00023972,4]
[361640460,1747657843009,-430.0,0.00023972,4]
[361640461,1747657843018,-430.0,0.00023972,4]
[361640462,1747657843028,-179.52483661,0.00023972,4]
[361640463,1747657843038,-434.9293222,0.00023972,4]
[361640464,1747657843047,-430.0,0.00023972,4]
[361640465,1747657843056,-430.0,0.00023972,4]
[361640466,1747657843066,-430.0,0.00023972,4]
[361640467,1747657843075,-359.72,0.00023972,4]
[361640468,1747657843085,-430.0,0.00023972,4]
[361640469,1747657843094,-430.0,0.00023972,4]
[361640470,1747657843104,-430.0,0.00023972,4]
[361640471,1747657843113,-430.0,0.00023972,4]
[361640472,1747657843122,-370.0,0.00023972,4]
[361640473,1747657843132,-430.0,0.00023972,4]
[361640474,1747657843141,-430.0,0.00023972,4]
[361640475,1747657843150,-430.0,0.00023972,4]
[361640476,1747657843159,-430.0,0.00023972,4]
[361640477,1747657843168,-176.67167248,0.00023972,4]
[361640478,1747657843178,-415.91969351,0.00023972,4]
[361640479,1747657843187,-505.43944528,0.00023972,4]
[361640480,1747657843197,-239.42144959,0.00023972,4]
[361640481,1747657843206,-430.0,0.00023972,4]
[361640483,1747657843215,-430.0,0.00023972,4]
[361640485,1747657843224,-430.0,0.00023972,4]
[361640487,1747657843233,-430.0,0.00023972,4]
[361640489,1747657843243,-430.0,0.00023972,4]
[361640491,1747657843252,-430.0,0.00023972,4]
[361640492,1747657843261,-430.0,0.00023972,4]
[361640493,1747657843270,-430.0,0.00023972,4]
[361640494,1747657843279,-430.0,0.00023972,4]
[361640495,1747657843288,-430.0,0.00023972,4]
[361640496,1747657843297,-430.0,0.00023972,4]
[361640497,1747657843306,-430.0,0.00023972,4]
[361640498,1747657843316,-430.0,0.00023972,4]
[361640499,1747657843325,-430.0,0.00023972,4]
[361640500,1747657843334,-430.0,0.00023972,4]
[361640501,1747657843343,-430.0,0.00023972,4]
[361640502,1747657843353,-512.93519082,0.00023972,4]
[361640503,1747657843363,-430.0,0.00023972,4]
[361640504,1747657843373,-430.0,0.00023972,4]
[361640505,1747657843382,-430.0,0.00023972,4]
[361640506,1747657843392,-430.0,0.00023972,4]
[361640507,1747657843402,-430.0,0.00023972,4]
[361640508,1747657843411,-430.0,0.00023972,4]
[361640509,1747657843420,-430.0,0.00023972,4]
[361640510,1747657843429,-430.0,0.00023972,4]
[361640511,1747657843438,-430.0,0.00023972,4]
[361640512,1747657843447,-170.0,0.00023972,4]
[361640513,1747657843458,-430.0,0.00023972,4]
[361640514,1747657843467,-430.0,0.00023972,4]
[361640515,1747657843476,-430.0,0.00023972,4]
[361640516,1747657843485,-430.0,0.00023972,4]
[361640517,1747657843494,-430.0,0.00023972,4]
[361640518,1747657843503,-430.0,0.00023972,4]
[361640519,1747657843512,-430.0,0.00023972,4]
[361640520,1747657843521,-430.0,0.00023972,4]
[361640521,1747657843530,-430.0,0.00023972,4]
[361640523,1747657843539,-470.0,0.00023972,4]
[361640525,1747657843549,-500.0,0.00023972,4]
[361640527,1747657843558,-570.0,0.00023972,4]
[361640531,1747657843567,-430.0,0.00023972,4]
[361640532,1747657843577,-430.0,0.00023972,4]
[361640533,1747657843585,-430.0,0.00023972,4]
[361640534,1747657843595,-430.0,0.00023972,4]
[361640535,1747657843604,-364.37,0.00023972,4]
[361640536,1747657843613,-430.0,0.00023972,4]
[361640537,1747657843622,-451.83,0.00023972,4]
[361640538,1747657843632,-430.0,0.00023972,4]
[361640539,1747657843642,-430.0,0.00023972,4]
[361640540,1747657843653,-430.0,0.00023972,4]
[361640541,1747657843669,-430.0,0.00023972,4]
[361640542,1747657843682,-430.0,0.00023972,4]
[361640543,1747657843693,-430.0,0.00023972,4]
[361640544,1747657843703,-430.0,0.00023972,4]
[361640545,1747657843713,-370.0,0.00023972,4]
[361640546,1747657843722,-430.0,0.00023972,4]
[361640547,1747657843732,-430.0,0.00023972,4]
[361640548,1747657843742,-430.0,0.00023972,4]
[361640549,1747657843752,-214.99,0.00023972,4]
[361640550,1747657843762,-430.0,0.00023972,4]
[361640551,1747657843773,-430.0,0.00023972,4]
[361640552,1747657843784,-170.0,0.00023972,4]
[361640553,1747657843795,-430.0,0.00023972,4]
[361640554,1747657843807,-430.0,0.00023972,4]
[361640555,1747657843817,-566.15175568,0.00023972,4]
[361640556,1747657843828,-885.11,0.00023972,4]
[361640557,1747657843840,-430.0,0.00023972,4]
[361640558,1747657843851,-430.0,0.00023972,4]
[361640559,1747657843862,-430.0,0.00023972,4]
[361640560,1747657843872,-430.0,0.00023972,4]
[361640561,1747657843882,-430.0,0.00023972,4]
[361640562,1747657843892,-430.0,0.00023972,4]
[361640563,1747657843902,-430.0,0.00023972,4]
[361640564,1747657843913,-289.34705371,0.00023972,4]
[361640565,1747657843923,-443.01,0.00023972,4]
[361640566,1747657843932,-695.21,0.00023972,4]
[361640567,1747657843942,-430.0,0.00023972,4]
[361640568,1747657843952,-430.0,0.00023972,4]
[361640569,1747657843961,-430.0,0.00023972,4]
[361640570,1747657843970,-566.08000274,0.00023972,4]
[361640571,1747657843979,-399.76560823,0.00023972,4]
[361640572,1747657843989,-430.0,0.00023972,4]
[361640573,1747657843999,-430.0,0.00023972,4]
[361640574,1747657844009,-430.0,0.00023972,4]
[361640575,1747657844018,-430.0,0.00023972,4]
[361640576,1747657844028,-370.0,0.00023972,4]
[361640577,1747657844038,-430.0,0.00023972,4]
[361640578,1747657844048,-430.0,0.00023972,4]
[361640579,1747657844058,-430.0,0.00023972,4]
[361640580,1747657844067,-430.0,0.00023972,4]
[361640581,1747657844077,-544.9,0.00023972,4]
[361640582,1747657844087,-430.0,0.00023972,4]
[361640583,1747657844096,-305.46811987,0.00023972,4]
[361640584,1747657844106,-430.0,0.00023972,4]
[361640585,1747657844115,-430.0,0.00023972,4]
[361640586,1747657844125,-430.0,0.00023972,4]
[361640587,1747657844134,-482.68854593,0.00023972,4]
[361640588,1747657844143,-436.73008457,0.00023972,4]
[361640589,1747657844153,-430.0,0.00023972,4]
[361640590,1747657844163,-430.0,0.00023972,4]
[361640591,1747657844173,-563.45161275,0.00023972,4]
[361640592,1747657844182,-178.42900657,0.00023972,4]
[361640593,1747657844192,-430.0,0.00023972,4]
[361640594,1747657844201,-430.0,0.00023972,4]
[361640595,1747657844211,-430.0,0.00023972,4]
[361640596,1747657844220,-430.0,0.00023972,4]
[361640597,1747657844232,-180.0,0.00023972,4]
[361640598,1747657844242,-430.0,0.00023972,4]
[361640599,1747657844251,-430.0,0.00023972,4]
[361640600,1747657844261,-430.0,0.00023972,4]
[361640601,1747657844271,-430.0,0.00023972,4]
[361640602,1747657844280,-379.45727242,0.00023972,4]
[361640603,1747657844290,-430.0,0.00023972,4]
[361640604,1747657844300,-430.0,0.00023972,4]
[361640605,1747657844310,-430.0,0.00023972,4]
[361640606,1747657844320,-430.0,0.00023972,4]
[361640607,1747657844329,-430.0,0.00023972,4]
[361640608,1747657844338,-430.0,0.00023972,4]
[361640609,1747657844348,-210.65164076,0.00023972,4]
[361640610,1747657844358,-430.0,0.00023972,4]
[361640611,1747657844367,-430.0,0.00023972,4]
[361640612,1747657844377,-430.0,0.00023972,4]
[361640613,1747657844386,-583.22,0.00023972,4]
[361640614,1747657844395,-430.0,0.00023972,4]
[361640615,1747657844405,-430.0,0.00023972,4]
[361640616,1747657844414,-430.0,0.00023972,2]
[361640617,1747657844423,-430.0,0.00023972,4]
[361640618,1747657844432,-479.04478347,0.00023972,4]
[361640619,1747657844442,-908.36,0.00023972,4]
[361640620,1747657844454,-430.0,0.00023972,4]
[361640621,1747657844466,-430.0,0.00023972,4]
[361640622,1747657844477,-575.49735029,0.00023972,4]
[361640623,1747657844487,-1697.44,0.00023972,4]
[361640624,1747657844499,-430.0,0.00023972,4]
[361640625,1747657844511,-574.72553952,0.00023972,4]
[361640626,1747657844521,-430.0,0.00023972,4]
[361640627,1747657844533,-430.0,0.00023972,4]
[361640628,1747657844542,-430.0,0.00023972,4]
[361640629,1747657844552,-430.0,0.00023972,4]
[361640630,1747657844561,-430.0,0.00023972,4]
[361640631,1747657844570,-430.0,0.00023972,4]
[361640632,1747657844580,-430.0,0.00023972,4]
[361640633,1747657844589,-430.0,0.00023972,4]
[361640634,1747657844600,-430.0,0.00023972,4]
[361640635,1747657844610,-430.0,0.00023972,4]
[361640636,1747657844620,-430.0,0.00023972,4]
[361640637,1747657844630,-430.0,0.00023972,4]
[361640638,1747657844640,-430.0,0.00023972,4]
[361640639,1747657844652,-430.0,0.00023972,4]
[361640640,1747657844664,-430.0,0.00023972,4]
[361640641,1747657844673,-430.0,0.00023972,4]
[361640642,1747657844683,-1166.52,0.00023972,4]
[361640643,1747657844693,-430.0,0.00023972,4]
[361640644,1747657844702,-430.0,0.00023972,4]
[361640645,1747657844714,-476.0699279,0.00023972,4]
[361640646,1747657844724,-430.0,0.00023972,4]
[361640647,1747657844733,-376.96170583,0.00023972,4]
[361640648,1747657844743,-271.02711361,0.00023972,4]
[361640649,1747657844752,-430.0,0.00023972,4]
[361640650,1747657844762,-430.0,0.00023972,4]
[361640651,1747657844771,-430.0,0.00023972,4]
[361640652,1747657844780,-470.0,0.00023972,4]
[361640653,1747657844790,-430.0,0.00023972,4]
[361640654,1747657844799,-430.0,0.00023972,4]
[361640655,1747657844810,-370.0,0.00023972,4]
[361640656,1747657844820,-430.0,0.00023972,4]
[361640657,1747657844830,-570.0,0.00023972,4]
[361640658,1747657844839,-430.0,0.00023972,4]
[361640659,1747657844849,-1165.95,0.00023972,4]
[361640660,1747657844860,-430.0,0.00023972,4]
[361640661,1747657844872,-370.0,0.00023972,4]
[361640662,1747657844883,-430.0,0.00023972,4]
[361640663,1747657844892,-273.40936353,0.00023972,4]
[361640664,1747657844902,-430.0,0.00023972,4]
[361640665,1747657845033,-447.28,0.00023972,4]
[361640666,1747657845042,-430.0,0.00023972,4]
[361640667,1747657845052,-470.0,0.00023972,4]
[361640668,1747657845061,-430.0,0.00023972,4]
[361640669,1747657845070,-479.8102738,0.00023972,4]
[361640670,1747657845079,-430.0,0.00023972,4]
[361640671,1747657845089,-446.94,0.00023972,4]
[361640672,1747657845098,-5427.77,0.00023972,4]
[361640673,1747657845107,-430.0,0.00023972,4]
[361640674,1747657845117,-430.0,0.00023972,4]
[361640675,1747657845126,-430.0,0.00023972,4]
[361640676,1747657845136,-379.34794973,0.00023972,4]
[361640677,1747657845146,-430.0,0.00023972,4]
[361640678,1747657845155,-510.0,0.00023972,4]
[361640679,1747657845165,-850.71,0.00023972,4]
[361640680,1747657845175,-430.0,0.00023972,4]
[361640681,1747657845185,-430.0,0.00023972,4]
[361640682,1747657845195,-430.0,0.00023972,4]
[361640683,1747657845205,-430.0,0.00023972,4]
[361640684,1747657845214,-430.0,0.00023972,4]
[361640685,1747657845224,-430.0,0.00023972,4]
[361640686,1747657845233,-430.0,0.00023972,4]
[361640687,1747657845243,-430.0,0.00023972,4]
[361640688,1747657845253,-401.35,0.00023972,4]
[361640689,1747657845262,-430.0,0.00023972,4]
[361640690,1747657845272,-579.08,0.00023972,4]
[361640691,1747657845282,-430.0,0.00023972,4]
[361640692,1747657845292,-430.0,0.00023972,4]
[361640693,1747657845303,-430.0,0.00023972,4]
[361640694,1747657845318,-1388.08,0.00023972,4]
[361640695,1747657845327,-1260.08,0.00023972,4]
[361640696,1747657845337,-430.0,0.00023972,4]
[361640697,1747657845347,-2996.16,0.00023972,4]
[361640698,1747657845356,-430.0,0.00023972,4]
[361640699,1747657845366,-1239.9,0.00023972,4]
[361640700,1747657845375,-430.0,0.00023972,4]
[361640701,1747657845386,-430.0,0.00023972,4]
[361640702,1747657845395,-1007.45,0.00023972,4]
[361640703,1747657845404,-893.23,0.00023972,4]
[361640704,1747657845414,-430.0,0.00023972,4]
[361640705,1747657845426,-430.0,0.00023972,4]
[361640706,1747657845436,-430.0,0.00023972,4]
[361640707,1747657845446,-1381.85,0.00023972,4]
[361640708,1747657845455,-430.0,0.00023972,4]
[361640709,1747657845465,-430.0,0.00023972,4]
[361640710,1747657845475,-370.0,0.00023972,4]
[361640711,1747657845485,-430.0,0.00023972,4]
[361640712,1747657845494,-430.0,0.00023972,4]
[361640713,1747657845504,-4863.71,0.00023972,4]
[361640714,1747657845513,-430.0,0.00023972,4]
[361640715,1747657845523,-529.6,0.00023972,4]
[361640716,1747657845532,-430.0,0.00023972,4]
[361640717,1747657845542,-430.0,0.00023972,4]
[361640718,1747657845551,-430.0,0.00023972,4]
[361640719,1747657845561,-430.0,0.00023972,4]
[361640720,1747657845572,-430.0,0.00023972,4]
[361640721,1747657845582,-2199.85,0.00023972,4]
[361640722,1747657845592,-430.0,0.00023972,4]
[361640723,1747657845602,-822.57,0.00023972,4]
[361640724,1747657845611,-3954.19,0.00023972,4]
[361640725,1747657845621,-430.0,0.00023972,4]
[361640726,1747657845631,-430.0,0.00023972,4]
[361640727,1747657845641,-430.0,0.00023972,4]
[361640728,1747657845650,-570.49,0.00023972,4]
[361640729,1747657845659,-430.0,0.00023972,4]
[361640730,1747657845669,-430.0,0.00023972,4]
[361640731,1747657845679,-430.0,0.00023972,4]
[361640732,1747657845688,-1161.2,0.00023972,4]
[361640733,1747657845698,-500.0,0.00023972,4]
[361640734,1747657845708,-563.24,0.00023972,4]
[361640735,1747657845718,-561.8726609,0.00023972,4]
[361640736,1747657845728,-5000.0,0.00023972,4]
[361640737,1747657845737,-430.0,0.00023972,4]
[361640738,1747657845747,-430.0,0.00023972,4]
[361640739,1747657845756,-3293.69,0.00023972,4]
[361640740,1747657845766,-430.0,0.00023972,4]
[361640741,1747657845775,-430.0,0.00023972,4]
[361640742,1747657845785,-430.0,0.00023972,4]
[361640743,1747657845794,-693.59,0.00023972,4]
[361640744,1747657845804,-430.0,0.00023972,4]
[361640745,1747657845814,-430.0,0.00023972,4]
[361640746,1747657845823,-430.0,0.00023972,4]
[361640747,1747657845832,-430.0,0.00023972,4]
[361640748,1747657845842,-430.0,0.00023972,4]
[361640749,1747657845852,-430.0,0.00023972,4]
[361640750,1747657845861,-430.0,0.00023972,4]
[361640751,1747657845871,-430.0,0.00023972,4]
[361640752,1747657845880,-430.0,0.00023972,4]
[361640753,1747657845890,-430.0,0.00023972,4]
[361640755,1747657845899,-430.0,0.00023972,4]
[361640757,1747657845909,-430.0,0.00023972,4]
[361640759,1747657845918,-430.0,0.00023972,4]
[361640761,1747657845927,-430.0,0.00023972,4]
[361640763,1747657845936,-430.0,0.00023972,4]
[361640765,1747657845946,-561.8704407,0.00023972,4]
[361640768,1747657845955,-430.0,0.00023972,4]
[361640769,1747657845964,-430.0,0.00023972,4]
[361640771,1747657845974,-430.0,0.00023972,4]
[361640773,1747657845982,-430.0,0.00023972,4]
[361640775,1747657845993,-441.58,0.00023972,4]
[361640776,1747657846002,-219.50726073,0.00023972,4]
[361640778,1747657846012,-1073.01,0.00023972,4]
[361640780,1747657846023,-430.0,0.00023972,4]
[361640782,1747657846032,-692.46,0.00023972,4]
[361640784,1747657846043,-430.0,0.00023972,4]
[361640787,1747657846056,-430.0,0.00023972,4]
[361640789,1747657846065,-1021.37,0.00023972,4]
[361640791,1747657846075,-779.47,0.00023972,4]
[361640793,1747657846084,-430.0,0.00023972,4]
[361640795,1747657846093,-439.52,0.00023972,4]
[361640797,1747657846103,-322.16119654,0.00023972,4]
[361640799,1747657846112,-430.0,0.00023972,4]
[361640801,1747657846121,-2024.61,0.00023972,4]
[361640803,1747657846131,-430.0,0.00023972,4]
[361640805,1747657846141,-430.0,0.00023972,4]
[361640807,1747657846150,-430.0,0.00023972,4]
[361640809,1747657846160,-648.43,0.00023972,4]
[361640811,1747657846169,-814.03,0.00023972,4]
[361640813,1747657846179,-1561.33,0.00023972,4]
[361640815,1747657846188,-758.91,0.00023972,4]
[361640816,1747657846197,-466.09013989,0.00023972,4]
[361640818,1747657846206,-430.0,0.00023972,4]
[361640820,1747657846217,-430.0,0.00023972,4]
[361640822,1747657846227,-893.03,0.00023972,4]
[361640824,1747657846236,-574.1,0.00023972,4]
[361640826,1747657846246,-430.0,0.00023972,4]
[361640828,1747657846255,-430.0,0.00023972,4]
[361640830,1747657846264,-430.0,0.00023972,4]
[361640832,1747657846274,-286.976757,0.00023972,4]
[361640834,1747657846283,-430.0,0.00023972,4]
[361640836,1747657846292,-585.13,0.00023972,4]
[361640838,1747657846301,-1478.85,0.00023972,4]
[361640840,1747657846310,-430.0,0.00023972,4]
[361640842,1747657846320,-430.0,0.00023972,4]
[361640844,1747657846329,-430.0,0.00023972,4]
[361640846,1747657846338,-430.0,0.00023972,4]
[361640848,1747657846349,-525.82,0.00023972,4]
[361640850,1747657846359,-669.24,0.00023972,4]
[361640852,1747657846368,-430.0,0.00023972,4]
[361640853,1747657846378,-941.78,0.00023972,4]
[361640855,1747657846388,-430.0,0.00023972,4]
[361640857,1747657846397,-430.0,0.00023972,4]
[361640859,1747657846406,-161.36188251,0.00023972,4]
[361640861,1747657846416,-1208.26,0.00023972,4]
[361640863,1747657846426,-430.0,0.00023972,4]
[361640865,1747657846435,-430.0,0.00023972,4]
[361640867,1747657846445,-430.0,0.00023972,4]
[361640869,1747657846454,-430.0,0.00023972,4]
[361640871,1747657846469,-439.17,0.00023972,4]
[361640873,1747657846479,-430.0,0.00023972,4]
[361640875,1747657846489,-430.0,0.00023972,4]
[361640877,1747657846499,-430.0,0.00023972,4]
[361640879,1747657846511,-499.999999,0.0002398,2]